lending/lending_fUSD_20251015
["ID","MTS","AMOUNT","RATE_DAILY","PERIOD"]
[391329156,1760539684161,-283.51950359,0.00013292,2]
[391329157,1760539687356,-16.48049641,0.00013292,2]
[391329158,1760539687382,-219.30693218,0.00013293,2]
[391329159,1760539689260,-307.20622567,0.00013293,2]
[391329160,1760539693189,-250.66650259,0.00013293,2]
[391329161,1760539696320,-350.59737714,0.00013293,2]
[391329162,1760539699968,-310.22959107,0.00013293,2]
[391329163,1760539701342,-369.31826138,0.00013293,2]
[391329164,1760539705030,-287.36383584,0.00013293,2]
[391329165,1760539709067,-155.89227498,0.00013208,2]
[391329166,1760539711135,-37.8139834,0.00013208,2]
[391329167,1760539711158,-220.90292361,0.00013293,2]
[391329168,1760539713134,-280.24649315,0.00013293,2]
[391329169,1760539716898,-294.41032499,0.00013293,2]
[391329170,1760539717879,-306.46578607,0.00013293,2]
[391329171,1760539720063,-241.39494732,0.00013293,2]
[391329172,1760539723539,-360.656192,0.00013293,2]
[391329173,1760539726575,-180.33112792,0.00013293,2]
[391329174,1760539728611,-224.0474455,0.00013293,2]
[391329175,1760539734418,-288.30287292,0.00013293,2]
[391329176,1760539736353,-351.69712708,0.00013293,2]
[391329177,1760539741617,-300.0,0.00013293,2]
[391329178,1760539743518,-300.0,0.00013293,2]
[391329179,1760539744971,-311.05,0.00013293,2]
[391329180,1760539748262,-208.79,0.00013293,2]
[391329181,1760539751001,-399.37,0.00013293,2]
[391329182,1760539752983,-285.96282001,0.00013293,2]
[391329183,1760539769166,-447.38477188,0.00013293,2]
[391329184,1760539772244,-180.73240811,0.00013293,2]
[391329185,1760539774571,-204.5,0.00013293,2]
[391329186,1760539775595,-161.13120818,0.00013293,2]
[391329187,1760539779733,-150.0,0.00013031,2]
[391329188,1760539779757,-6.57366959,0.00013135,2]
[391329189,1760539781675,-369.52490519,0.00013135,2]
[391329190,1760539798681,-72.54142522,0.00013135,2]
[391329191,1760539798703,-390.40681569,0.00013293,2]
[391329192,1760539801767,-290.12902328,0.00013293,2]
[391329193,1760539805119,-240.97038691,0.00013293,2]
[391329194,1760539809067,-167.60418897,0.00013293,2]
[391329195,1760539812100,-256.97513188,0.00013293,2]
[391329196,1760539815271,-457.85196249,0.00013293,2]
[391329197,1760539816775,-183.67138701,0.00013293,2]
[391329198,1760539821872,-412.90087671,0.00013293,2]
[391329199,1760539823855,-215.4245165,0.00013293,2]
[391329200,1760539825329,-193.49040346,0.00013293,2]
[391329242,1760539832527,-235.06599117,0.00013293,2]
[391329243,1760539832573,-545.31,0.00013293,2]
[391329244,1760539832587,-456.7858882,0.00013293,2]
[391329245,1760539832624,-222.17000513,0.00013293,2]
[391329246,1760539832634,-185.22759065,0.000133,2]
[391329247,1760539832643,-54.16740422,0.00013308,2]
[391329248,1760539832681,-109.61259578,0.00013308,2]
[391329249,1760539832690,-19.1903155,0.00013413,2]
[391329250,1760539832700,-150.0,0.00013488,2]
[391329251,1760539832709,-1117.98468062,0.00013624,2]
[391329252,1760539832721,-2182.37961044,0.00013624,2]
[391329253,1760539832740,-239.70570894,0.00013624,2]
[391329254,1760539832750,-1200.0,0.0001363,2]
[391329255,1760539832759,-300.0,0.00013637,2]
[391329256,1760539832769,-300.0,0.00013637,2]
[391329257,1760539832778,-1187.5,0.00013652,2]
[391329258,1760539832788,-280.9587,0.00013672,2]
[391329259,1760539832798,-1036.58,0.00013685,2]
[391329260,1760539832811,-72.72358106,0.00013706,2]
[391329261,1760539832823,-2494.54641894,0.00013706,2]
[391329262,1760539832835,-150.0,0.00013762,2]
[391329263,1760539832845,-151.0,0.00013763,2]
[391329264,1760539832855,-200.0,0.00013763,2]
[391329265,1760539832864,-151.0,0.00013763,2]
[391329266,1760539832874,-151.0,0.00013763,2]
[391329267,1760539832885,-151.0,0.00013763,2]
[391329268,1760539832894,-151.0,0.00013763,2]
[391329269,1760539832904,-151.0,0.00013763,2]
[391329270,1760539832913,-151.0,0.00013763,2]
[391329271,1760539832925,-151.0,0.00013763,2]
[391329272,1760539832934,-151.0,0.00013763,2]
[391329273,1760539832944,-151.0,0.00013763,2]
[391329274,1760539832953,-151.0,0.00013763,2]
[391329275,1760539832963,-151.0,0.00013763,2]
[391329276,1760539832972,-151.0,0.00013763,2]
[391329277,1760539832983,-151.0,0.00013763,2]
[391329278,1760539832992,-173.36787212,0.00013763,2]
[391329279,1760539833002,-151.0,0.00013763,2]
[391329280,1760539833012,-151.0,0.00013763,2]
[391329281,1760539833022,-151.0,0.00013763,2]
[391329282,1760539833031,-151.0,0.00013763,2]
[391329283,1760539833046,-500.0,0.00013763,2]
[391329284,1760539833056,-207.4,0.00013763,2]
[391329285,1760539833066,-161.17841082,0.00013763,2]
[391329286,1760539833076,-151.0,0.00013763,2]
[391329287,1760539833086,-151.0,0.00013763,2]
[391329288,1760539833097,-151.0,0.00013763,2]
[391329289,1760539833107,-151.0,0.00013763,2]
[391329290,1760539833117,-151.0,0.00013763,2]
[391329291,1760539833127,-151.0,0.00013763,2]
[391329292,1760539833137,-151.0,0.00013763,2]
[391329293,1760539833147,-151.0,0.00013763,2]
[391329294,1760539833157,-151.0,0.00013763,2]
[391329295,1760539833167,-151.0,0.00013763,2]
[391329296,1760539833177,-151.0,0.00013763,2]
[391329297,1760539833186,-151.0,0.00013763,2]
[391329298,1760539833197,-151.0,0.00013763,2]
[391329299,1760539833206,-151.0,0.00013763,2]
[391329300,1760539833216,-155.61772758,0.00013763,2]
[391329301,1760539833226,-83253.06883351,0.00013772,2]
[391329302,1760539833236,-1000.0,0.00013772,2]
[391329303,1760539833246,-12139.3115655,0.00013772,2]
[391329313,1760539837660,-662.02,0.00013098,2]
[391329314,1760539837669,-14450.5051345,0.00013772,2]
[391329315,1760539837681,-500.0,0.00013772,2]
[391329316,1760539837691,-481.7,0.00013795,2]
[391329317,1760539837702,-2751.0,0.00013824,2]
[391329318,1760539837711,-168.0,0.0001389,2]
[391329319,1760539837721,-287.75,0.00013913,2]
[391329320,1760539837731,-150.0,0.0001395,2]
[391329321,1760539837740,-168.0,0.00013975,2]
[391329322,1760539837749,-150.0,0.00013987,2]
[391329323,1760539837760,-200.0,0.00014,2]
[391329324,1760539837773,-7221.41670931,0.00014162,2]
[391329325,1760539837783,-168.0,0.00014197,2]
[391329326,1760539837792,-168.0,0.00014206,2]
[391329327,1760539837803,-7221.41670923,0.00014244,2]
[391329328,1760539837812,-500.0,0.00014245,2]
[391329329,1760539837822,-500.0,0.00014245,2]
[391329330,1760539837832,-500.0,0.00014245,2]
[391329331,1760539837841,-500.0,0.00014245,2]
[391329332,1760539837852,-500.0,0.00014245,2]
[391329333,1760539837862,-500.0,0.00014245,2]
[391329334,1760539837873,-500.0,0.00014245,2]
[391329335,1760539837882,-500.0,0.00014245,2]
[391329336,1760539837895,-500.0,0.00014245,2]
[391329337,1760539837904,-430.39568136,0.00014245,2]
[391329338,1760539837914,-500.0,0.00014245,2]
[391329339,1760539837923,-500.0,0.00014245,2]
[391329340,1760539837932,-500.0,0.00014245,2]
[391329341,1760539837942,-500.0,0.00014245,2]
[391329342,1760539837951,-500.0,0.00014245,2]
[391329343,1760539837960,-500.0,0.00014245,2]
[391329344,1760539837969,-500.0,0.00014245,2]
[391329345,1760539837979,-500.0,0.00014245,2]
[391329346,1760539837989,-322.6107,0.00014246,2]
[391329347,1760539837999,-721.12765535,0.00014246,2]
[391329348,1760539838009,-857.46696926,0.00014246,2]
[391329349,1760539838018,-500.0,0.00014246,2]
[391329350,1760539838029,-500.0,0.00014246,2]
[391329351,1760539838038,-500.0,0.00014246,2]
[391329352,1760539838048,-1680.22689339,0.00014247,2]
[391329353,1760539838058,-2584.0,0.00014262,2]
[391329354,1760539838067,-168.0,0.00014299,2]
[391329355,1760539838077,-168.0,0.00014319,2]
[391329356,1760539838088,-7221.41670923,0.00014326,2]
[391329357,1760539838098,-7221.41670923,0.00014408,2]
[391329358,1760539838108,-150.0,0.00014487,2]
[391329359,1760539838117,-7221.41670923,0.0001449,2]
[391329360,1760539838127,-7221.41670923,0.00014572,2]
[391329361,1760539838136,-889.80654812,0.00014595,2]
[391329362,1760539838146,-786.94888517,0.00014622,2]
[391329363,1760539838155,-1550.02708324,0.00014622,2]
[391329364,1760539838165,-195.0,0.00014622,2]
[391329365,1760539838174,-300.0,0.00014622,2]
[391329366,1760539838183,-300.0,0.00014622,2]
[391329367,1760539838193,-195.0,0.00014622,2]
[391329369,1760539838202,-1635.89651892,0.00014622,2]
[391329371,1760539838212,-1029.38163323,0.00014622,2]
[391329373,1760539838222,-250.0,0.00014622,2]
[391329375,1760539838232,-163.78,0.00014639,2]
[391329377,1760539838242,-183.6694816,0.00014639,2]
[391329379,1760539838252,-7221.41670923,0.00014654,2]
[391329381,1760539838261,-2221.71592201,0.00014699,2]
[391329384,1760539838278,-463.0576,0.000147,2]
[391329386,1760539838292,-2500.0,0.000147,2]
[391329388,1760539838302,-990.42432436,0.000147,2]
[391329390,1760539838312,-1000.0,0.00014726,2]
[391329392,1760539838322,-1000.0,0.00014727,2]
[391329393,1760539838331,-7221.41670923,0.00014736,2]
[391329394,1760539838341,-1000.0,0.00014737,2]
[391329395,1760539838351,-150.0,0.00014738,2]
[391329396,1760539838360,-1000.0,0.0001475,2]
[391329397,1760539838371,-2500.0,0.00014754,2]
[391329398,1760539838380,-1425.0,0.00014762,2]
[391329399,1760539838390,-150.0,0.00014764,2]
[391329400,1760539838400,-1000.0,0.00014786,2]
[391329401,1760539838410,-1000.0,0.000148,2]
[391329402,1760539838420,-7221.41670923,0.00014818,2]
[391329403,1760539838431,-1000.0,0.00014822,2]
[391329404,1760539838441,-248.76941821,0.00014827,2]
[391329405,1760539838451,-1000.0,0.00014832,2]
[391329406,1760539838461,-1000.0,0.00014836,2]
[391329407,1760539838471,-1425.0,0.0001484,2]
[391329408,1760539838481,-1000.0,0.00014841,2]
[391329409,1760539838491,-1000.0,0.00014841,2]
[391329410,1760539838501,-151.52274042,0.00014842,2]
[391329411,1760539838511,-151.33905994,0.00014842,2]
[391329412,1760539838520,-1378.5049,0.0001485,2]
[391329413,1760539838530,-1000.0,0.00014855,2]
[391329414,1760539838540,-150.0,0.00014859,2]
[391329415,1760539838550,-150.0,0.00014862,2]
[391329416,1760539838560,-1425.0,0.00014869,2]
[391329417,1760539838570,-255.0,0.00014877,2]
[391329418,1760539838580,-170.28734743,0.00014887,2]
[391329419,1760539838592,-1000.0,0.00014891,2]
[391329420,1760539838602,-1000.0,0.00014892,2]
[391329421,1760539838611,-150.0,0.00014895,2]
[391329422,1760539838621,-1136.60916311,0.00014899,2]
[391329423,1760539838631,-1136.60916307,0.00014899,2]
[391329424,1760539838641,-1136.60916307,0.00014899,2]
[391329425,1760539838651,-1136.60916307,0.00014899,2]
[391329426,1760539838660,-1136.60916307,0.00014899,2]
[391329427,1760539838671,-1136.60916307,0.000149,2]
[391329428,1760539838681,-1136.60916307,0.000149,2]
[391329429,1760539838691,-1136.60916307,0.000149,2]
[391329430,1760539838701,-1136.60916307,0.000149,2]
[391329431,1760539838711,-303.05668656,0.000149,2]
[391329432,1760539838720,-4226.861,0.000149,2]
[391329433,1760539838730,-273.536,0.000149,2]
[391329434,1760539838740,-1408.0,0.000149,2]
[391329435,1760539838750,-3695.81211346,0.000149,2]
[391329436,1760539838809,-1304.18788654,0.000149,2]
[391329437,1760539838823,-7221.41670923,0.000149,2]
[391329438,1760539838832,-270.87047864,0.000149,2]
[391329439,1760539838844,-2899.3334,0.000149,2]
[391329440,1760539838855,-1136.60916307,0.000149,2]
[391329441,1760539838865,-198.65787578,0.000149,2]
[391329442,1760539838875,-1000.0,0.00014931,2]
[391329443,1760539838887,-2584.0,0.00014939,2]
[391329444,1760539838896,-106.56825829,0.00014946,2]
[391329445,1760539838909,-313.43174171,0.00014946,2]
[391329446,1760539838919,-420.0,0.00014946,2]
[391329447,1760539838929,-1000.0,0.00014951,2]
[391329448,1760539838939,-1425.0,0.00014964,2]
[391329449,1760539838949,-150.0,0.00014966,2]
[391329450,1760539838959,-500.0,0.00014973,2]
[391329451,1760539838972,-500.0,0.00014973,2]
[391329452,1760539838982,-500.0,0.00014973,2]
[391329453,1760539838992,-570.98443138,0.00014973,2]
[391329454,1760539839002,-192.58382691,0.00014973,2]
[391329455,1760539839033,-307.41617309,0.00014973,2]
[391329456,1760539839043,-500.0,0.00014973,2]
[391329457,1760539839053,-500.0,0.00014973,2]
[391329458,1760539839063,-500.32953673,0.00014973,2]
[391329459,1760539839073,-500.0,0.00014973,2]
[391329460,1760539839083,-500.0,0.00014973,2]
[391329461,1760539839093,-500.0,0.00014973,2]
[391329462,1760539839104,-500.0,0.00014973,2]
[391329463,1760539839114,-500.0,0.00014973,2]
[391329464,1760539839124,-501.17212125,0.00014973,2]
[391329465,1760539839134,-1000.0,0.00014975,2]
[391329466,1760539839144,-150.00000071,0.00014986,2]
[391329467,1760539839172,-1680.0,0.00014993,2]
[391329468,1760539839193,-3538.08216822,0.00014995,2]
[391329469,1760539840070,-10140.47606108,0.00014995,2]
[391329470,1760539840085,-2102.22590521,0.00014995,2]
[391329471,1760539840102,-11572.40519996,0.00014995,2]
[391329473,1760539840119,-15317.91842913,0.00014995,2]
[391329475,1760539840133,-177.1670959,0.00014995,2]
[391329478,1760539840148,-151.0,0.00014997,2]
[391329481,1760539840162,-388.53663005,0.00014997,2]
[391329483,1760539840176,-1000.0,0.00014998,2]
[391329486,1760539840190,-749.0,0.00014998,2]
[391329488,1760539840205,-571.0,0.00014998,2]
[391329491,1760539840219,-604.0,0.00014998,2]
[391329493,1760539840234,-1309.0,0.00014998,2]
[391329496,1760539840247,-4014.0,0.00014998,2]
[391329498,1760539840262,-1583.0,0.00014998,2]
[391329501,1760539840276,-902.0,0.00014998,2]
[391329503,1760539840290,-2545.0,0.00014998,2]
[391329504,1760539840304,-487.40913173,0.00014999,2]
[391329505,1760539840319,-500.0,0.00014999,2]
[391329506,1760539840333,-196.44572157,0.00014999,2]
[391329507,1760539840350,-380.17766834,0.00014999,2]
[391329508,1760539840365,-500.0,0.00014999,2]
[391329509,1760539840379,-489.69237956,0.00014999,2]
[391329510,1760539840394,-305.9879915,0.00014999,2]
[391329511,1760539840409,-155.0,0.00014999,2]
[391329512,1760539840424,-1853.0,0.00015,2]
[391329513,1760539840438,-19318.96499225,0.00015,2]
[391329514,1760539840452,-205460.76312613,0.00015,2]
[391329515,1760539840524,-1673.72730934,0.00015,2]
[391329516,1760539840591,-1035.02007347,0.00015,2]
[391329517,1760539840611,-4953.15216308,0.00015,2]
[391329518,1760539840715,-559.0,0.00015,2]
[391329519,1760539841638,-1.6e-07,0.00015,2]
[391329522,1760539845362,-170.28734741,0.00014894,2]
[391329523,1760539845372,-623.10328107,0.00014998,2]
[391329524,1760539845414,-558.89671893,0.00014998,2]
[391329525,1760539845424,-11106.276117,0.00015,2]
[391329526,1760539845435,-5588.9676,0.00015,2]
[391329528,1760539845642,-2057.5,0.00015,2]
[391329529,1760539845739,-21526.84675764,0.00015,2]
[391329530,1760539845749,-1293.6764,0.00015,2]
[391329531,1760539845761,-450.85402016,0.00015,2]
[391329532,1760539845773,-839.9099692,0.00015,2]
[391329533,1760539845785,-996.92408764,0.00015,2]
[391329534,1760539845798,-306.372,0.00015,2]
[391329536,1760540350389,7403.99,0.00027397,120]
[391329626,1760540396903,506.0,0.00016,90]
[391329627,1760540410361,-3000000.0,0.00030162,30]
[391329629,1760540427322,-5000000.0,0.00030162,30]
[391329630,1760540440558,-7227466.30100427,0.00030162,30]
[391329631,1760540440587,-1000.0,0.00030162,30]
[391329632,1760540440616,-5000.0,0.00030162,37]
[391329633,1760540440663,-500.0,0.00030162,120]
[391329634,1760540440693,-626.36947017,0.00030162,120]
[391329635,1760540440724,-1107.33,0.00030162,120]
[391329636,1760540440754,-1107.33,0.00030162,120]
[391329637,1760540440786,-1107.33,0.00030162,120]
[391329638,1760540440816,-1107.33,0.00030162,120]
[391329639,1760540440851,-1107.33,0.00030162,120]
[391329640,1760540440883,-1107.33,0.00030162,120]
[391329641,1760540440915,-1107.33,0.00030162,120]
[391329642,1760540440948,-1107.33,0.00030162,120]
[391329643,1760540440985,-1107.33,0.00030162,120]
[391329644,1760540441019,-1107.33,0.00030162,120]
[391329645,1760540441052,-1107.33,0.00030162,120]
[391329646,1760540441088,-1107.33,0.00030162,120]
[391329647,1760540441121,-1107.33,0.00030162,120]
[391329648,1760540441155,-1107.33,0.00030162,120]
[391329649,1760540441191,-1107.33,0.00030162,120]
[391329650,1760540441225,-1107.33,0.00030162,120]
[391329651,1760540441256,-1107.33,0.00030162,120]
[391329652,1760540441286,-1107.33,0.00030162,120]
[391329653,1760540441317,-1107.33,0.00030162,120]
[391329654,1760540441349,-1107.33,0.00030162,120]
[391329655,1760540441383,-1107.33,0.00030162,120]
[391329656,1760540441414,-1107.33,0.00030162,120]
[391329657,1760540441445,-1107.33,0.00030162,120]
[391329658,1760540441478,-1107.37579564,0.00030162,120]
[391329659,1760540441507,-500.0,0.00030162,120]
[391329660,1760540441543,-500.0,0.00030162,120]
[391329661,1760540441575,-500.0,0.00030162,120]
[391329662,1760540441614,-500.0,0.00030162,120]
[391329663,1760540441647,-500.0,0.00030162,120]
[391329664,1760540441679,-500.0,0.00030162,120]
[391329665,1760540441711,-500.0,0.00030162,120]
[391329666,1760540441743,-605.85070541,0.00030162,120]
[391329667,1760540441778,-2984.51,0.00030162,120]
[391329668,1760540441812,-2984.51,0.00030162,120]
[391329669,1760540441850,-2984.51,0.00030162,120]
[391329670,1760540441887,-2984.51,0.00030162,120]
[391329671,1760540441927,-2984.51,0.00030162,120]
[391329672,1760540441965,-2984.51,0.00030162,120]
[391329673,1760540442001,-2984.51,0.00030162,120]
[391329674,1760540442035,-2984.51,0.00030162,120]
[391329675,1760540442076,-2984.51,0.00030162,120]
[391329676,1760540442115,-2984.51,0.00030162,120]
[391329677,1760540442151,-2984.51,0.00030162,120]
[391329678,1760540442188,-2984.51,0.00030162,120]
[391329679,1760540442223,-2984.51,0.00030162,120]
[391329680,1760540442257,-2984.51,0.00030162,120]
[391329681,1760540442289,-2984.51,0.00030162,120]
[391329682,1760540442326,-2984.51,0.00030162,120]
[391329683,1760540442364,-2984.51,0.00030162,120]
[391329684,1760540442398,-2984.51,0.00030162,120]
[391329685,1760540442433,-2984.51,0.00030162,120]
[391329686,1760540442467,-2984.51,0.00030162,120]
[391329687,1760540442501,-2984.51,0.00030162,120]
[391329688,1760540442537,-2984.51,0.00030162,120]
[391329689,1760540442572,-2984.51,0.00030162,120]
[391329690,1760540442612,-2984.71112778,0.00030162,120]
[391329691,1760540442646,-500.0,0.00030162,120]
[391329692,1760540443112,-499.28952753,0.00030162,120]
[391329693,1760540443164,-500.0,0.00030162,120]
[391329694,1760540443197,-501.17123331,0.00030162,120]
[391329695,1760540443230,-499.4177154,0.00030162,120]
[391329696,1760540443263,-500.0,0.00030162,120]
[391329697,1760540443295,-500.0,0.00030162,120]
[391329698,1760540443335,-550.76,0.00030162,120]
[391329699,1760540443371,-500.0,0.00030162,120]
[391329700,1760540443405,-508.52,0.00030162,120]
[391329701,1760540443439,-405.69883774,0.00030162,120]
[391329702,1760540443473,-500.0,0.00030162,120]
[391329703,1760540443506,-500.0,0.00030162,120]
[391329704,1760540443537,-500.0,0.00030162,120]
[391329705,1760540443568,-500.0,0.00030162,120]
[391329706,1760540443606,-500.0,0.00030162,120]
[391329707,1760540443638,-273.25,0.00030162,120]
[391329708,1760540443671,-500.0,0.00030162,120]
[391329709,1760540443705,-500.0,0.00030162,120]
[391329710,1760540443737,-299.74970581,0.00030162,120]
[391329711,1760540443769,-331.13,0.00030162,120]
[391329712,1760540443800,-500.0,0.00030162,120]
[391329713,1760540443832,-499.41087901,0.00030162,120]
[391329714,1760540443863,-500.0,0.00030162,120]
[391329715,1760540443894,-500.0,0.00030162,120]
[391329716,1760540443924,-492.97,0.00030162,120]
[391329717,1760540443959,-500.0,0.00030162,120]
[391329718,1760540443991,-548.85,0.00030162,120]
[391329719,1760540444024,-500.0,0.00030162,120]
[391329720,1760540444056,-500.0,0.00030162,120]
[391329721,1760540444089,-500.0,0.00030162,120]
[391329722,1760540444121,-500.0,0.00030162,120]
[391329723,1760540444153,-500.0,0.00030162,120]
[391329724,1760540444185,-165.45,0.00030162,120]
[391329725,1760540444215,-500.0,0.00030162,120]
[391329726,1760540444245,-500.0,0.00030162,120]
[391329727,1760540444277,-286.46,0.00030162,120]
[391329728,1760540444307,-500.0,0.00030162,120]
[391329729,1760540444343,-500.0,0.00030162,120]
[391329730,1760540444373,-500.0,0.00030162,120]
[391329731,1760540444404,-500.0,0.00030162,120]
[391329732,1760540444434,-188.2,0.00030162,120]
[391329733,1760540444465,-500.0,0.00030162,120]
[391329734,1760540444495,-500.0,0.00030162,120]
[391329735,1760540444528,-500.0,0.00030162,120]
[391329736,1760540444558,-500.0,0.00030162,120]
[391329737,1760540444590,-500.0,0.00030162,120]
[391329738,1760540444623,-500.0,0.00030162,120]
[391329739,1760540444658,-500.0,0.00030162,120]
[391329740,1760540444689,-500.0,0.00030162,120]
[391329741,1760540444719,-526.0,0.00030162,120]
[391329742,1760540444748,-500.0,0.00030162,120]
[391329743,1760540444783,-587.01,0.00030162,120]
[391329744,1760540444812,-500.0,0.00030162,120]
[391329745,1760540444845,-500.0,0.00030162,120]
[391329746,1760540444875,-431.42,0.00030162,120]
[391329747,1760540444905,-500.0,0.00030162,120]
[391329748,1760540444934,-205.63,0.00030162,120]
[391329749,1760540444966,-500.0,0.00030162,120]
[391329750,1760540444995,-500.0,0.00030162,120]
[391329751,1760540445024,-500.0,0.00030162,120]
[391329752,1760540445053,-562.73,0.00030162,120]
[391329753,1760540445084,-500.0,0.00030162,120]
[391329754,1760540445113,-500.0,0.00030162,120]
[391329755,1760540445142,-500.0,0.00030162,120]
[391329756,1760540445170,-500.0,0.00030162,120]
[391329757,1760540445199,-573.97,0.00030162,120]
[391329758,1760540445227,-500.0,0.00030162,120]
[391329759,1760540445254,-500.0,0.00030162,120]
[391329760,1760540445281,-554.79090715,0.00030162,120]
[391329761,1760540445311,-500.0,0.00030162,120]
[391329762,1760540445342,-500.0,0.00030162,120]
[391329763,1760540445371,-500.0,0.00030162,120]
[391329764,1760540445399,-500.0,0.00030162,120]
[391329765,1760540445429,-500.0,0.00030162,120]
[391329766,1760540445458,-500.0,0.00030162,120]
[391329767,1760540445487,-271.95,0.00030162,120]
[391329768,1760540445515,-500.0,0.00030162,120]
[391329769,1760540445542,-527.0794037,0.00030162,120]
[391329770,1760540445570,-500.0,0.00030162,120]
[391329771,1760540445604,-545.3,0.00030162,120]
[391329772,1760540445633,-500.0,0.00030162,120]
[391329773,1760540445663,-345.63,0.00030162,120]
[391329774,1760540445692,-500.0,0.00030162,120]
[391329775,1760540445722,-551.47,0.00030162,120]
[391329776,1760540445750,-500.0,0.00030162,120]
[391329777,1760540445779,-500.0,0.00030162,120]
[391329778,1760540445811,-500.0,0.00030162,120]
[391329779,1760540445846,-500.0,0.00030162,120]
[391329780,1760540445877,-500.0,0.00030162,120]
[391329781,1760540445906,-500.0,0.00030162,120]
[391329782,1760540445937,-516.6,0.00030162,120]
[391329783,1760540445969,-584.99,0.00030162,120]
[391329784,1760540445999,-500.0,0.00030162,120]
[391329785,1760540446030,-500.0,0.00030162,120]
[391329786,1760540446059,-500.0,0.00030162,120]
[391329787,1760540446364,-419.81,0.00030162,120]
[391329788,1760540446394,-500.0,0.00030162,120]
[391329789,1760540446422,-500.0,0.00030162,120]
[391329790,1760540446449,-268.7,0.00030162,120]
[391329791,1760540446477,-500.0,0.00030162,120]
[391329792,1760540446505,-500.0,0.00030162,120]
[391329793,1760540446533,-610.03,0.00030162,120]
[391329794,1760540446559,-179.82,0.00030162,120]
[391329795,1760540446589,-500.0,0.00030162,120]
[391329796,1760540446616,-157.3,0.00030162,120]
[391329797,1760540446644,-500.0,0.00030162,120]
[391329798,1760540446671,-500.0,0.00030162,120]
[391329799,1760540446697,-500.0,0.00030162,120]
[391329800,1760540446723,-234.44,0.00030162,120]
[391329801,1760540446750,-500.0,0.00030162,120]
[391329802,1760540446779,-522.43,0.00030162,120]
[391329803,1760540446806,-500.0,0.00030162,120]
[391329804,1760540446836,-500.0,0.00030162,120]
[391329805,1760540446863,-271.32,0.00030162,120]
[391329806,1760540446890,-500.0,0.00030162,120]
[391329807,1760540446916,-500.0,0.00030162,120]
[391329808,1760540446943,-500.0,0.00030162,120]
[391329809,1760540446972,-500.0,0.00030162,120]
[391329810,1760540446998,-500.0,0.00030162,120]
[391329811,1760540447025,-500.0,0.00030162,120]
[391329812,1760540447052,-500.0,0.00030162,120]
[391329813,1760540447078,-625.2,0.00030162,120]
[391329814,1760540447107,-500.0,0.00030162,120]
[391329815,1760540447132,-500.0,0.00030162,120]
[391329816,1760540447159,-246.2,0.00030162,120]
[391329817,1760540447186,-500.0,0.00030162,120]
[391329818,1760540447213,-500.0,0.00030162,120]
[391329819,1760540447240,-624.04,0.00030162,120]
[391329820,1760540447267,-500.0,0.00030162,120]
[391329821,1760540447295,-536.34,0.00030162,120]
[391329822,1760540447322,-270.53,0.00030162,120]
[391329823,1760540447351,-500.0,0.00030162,120]
[391329824,1760540447378,-161.34,0.00030162,120]
[391329825,1760540447405,-500.0,0.00030162,120]
[391329826,1760540447431,-500.0,0.00030162,120]
[391329827,1760540447458,-500.0,0.00030162,120]
[391329828,1760540447485,-280.34,0.00030162,120]
[391329829,1760540447511,-500.0,0.00030162,120]
[391329830,1760540447538,-500.0,0.00030162,120]
[391329831,1760540447565,-500.0,0.00030162,120]